[Event "1st Serbian League 2022"]
[Site "Vrnjacka Banja"]
[Date "2022.09.26"]
[Round "7.8"]
[White "Stojanovic, Mihajlo"]
[Black "Puranik, Abhimanyu"]
[Result "0-1"]
[ECO "D87"]
[WhiteElo "2494"]
[BlackElo "2603"]
[Annotator "TA"]
[PlyCount "78"]
[EventDate "2022.09.20"]
[EventType "team-tourn"]
[EventCountry "SRB"]
[SourceTitle "playchess.com"]
[Source "ChessBase"]
[SourceQuality "1"]
[TimeControl "40/5400+30:1800+30"]

{[%evp 21,78,22,35,0,36,17,21,0,0,8,12,12,0,0,10,-2,9,-2,-6,-84,-78,-79,-84,-77,-80,-188,-197,-184,-175,-293,-279,-298,-279,-285,-234,-281,-277,-279,-258,-247,-240,-973,-972,-947,-928,-29999,0,-37,0,-29941,-29945,-29954,-12851,-29992,-29992,-29993,-29994,-29998,-29999]} 1. d4 {[%emt 0:00:18]} Nf6 {[%emt 0:00:05]} 2. c4 {[%emt 0:00:05]} g6 {[%emt 0:00:13]} 3. Nc3 {[%emt 0:00:06]} d5 {[%emt 0:00:03]} 4. cxd5 {[%emt 0:00:06]} Nxd5 {[%emt 0:00:03]} 5. e4 {[%emt 0:00:07]} Nxc3 {[%emt 0:00:05]} 6. bxc3 {[%emt 0:00:06]} Bg7 {[%emt 0:00:04]} 7. Bc4 {[%emt 0:00:07]} c5 {[%emt 0:00:39]} 8. Ne2 {[%emt 0:00:07]} Nc6 {[%emt 0:00:06]} 9. Be3 {[%emt 0:00:08]} O-O {[%emt 0:00:33]} 10. O-O {[%emt 0:00:08]} Bg4 {[%emt 0:01:28]} 11. f3 {[%emt 0:00:44]} Bd7 {[%emt 0:00:05] The modern move.} 12. dxc5 {[%emt 0:11:38] D87: Exchange Grünfeld: Classical Line: Variations without ...cxd4.} Na5 {[%emt 0:06:07]} 13. Bd3 {[%emt 0:09:47]} Qc7 {[%emt 0:03:32]} 14. Nd4 {[%emt 0:27:51] The position is equal.} Rfd8 {[%emt 0:10:21]} 15. Qe2 {[%emt 0:01:47] [#]} e5 $146 {[%emt 0:19:39]} ({Predecessor:} 15... e6 16. f4 Bf8 17. f5 Bxc5 18. f6 Rac8 19. Qf2 Ba4 20. Kh1 e5 21. Ne6 Bxe3 22. Qxe3 fxe6 {0-1 (37) Nemtsas,H (1934)-Delithanasis,D (2181) Athens 2014}) 16. Nb3 {[%emt 0:00:15]} Bf8 {[%emt 0:01:05]} 17. Kh1 {[%emt 0:01:12]} Rac8 {[%emt 0:07:56]} 18. h4 {[%emt 0:10:13]} a6 {[%emt 0:10:11]} 19. Rab1 {[%emt 0:04:26]} Nxb3 {[%emt 0:01:06]} 20. Rxb3 {[%emt 0:04:45]} (20. axb3 $11 {remains equal.} Bxc5 21. Bg5) 20... Be6 $17 {[%emt 0:00:19]} 21. Bc4 {[%emt 0:02:37]} Bxc4 {[%emt 0:01:16]} 22. Qxc4 {[%emt 0:00:03]} b5 {[%emt 0:00:06]} (22... Bxc5 23. Qxc5 Qxc5 24. Bxc5 Rxc5 25. Rxb7 $11) 23. Qb4 {[%emt 0:00:24]} (23. Qe2 $17) 23... Rd3 $1 $19 {[%emt 0:01:19]} (23... Bxc5 24. Bxc5 Qxc5 25. a4 $15) 24. Bf2 {[%emt 0:03:44] [#]} Rd2 $1 {[%emt 0:01:33][%cal Od2f2]} (24... Bxc5 25. Bxc5 Qxc5 26. a4 $17) 25. Qa3 {[%emt 0:06:19] [#]} (25. Rb2 $142 Rxf2 26. Rfxf2 (26. Rbxf2 Bxc5 27. Qb2 Qd8 $17) 26... Bxc5 27. Qb3) 25... Rxf2 $1 {[%emt 0:06:36][%mdl 576] Remove Defender, Decoy} 26. Rxf2 {[%emt 0:00:03]} Bxc5 {[%emt 0:00:08]} 27. Qb2 {[%emt 0:00:07]} Qd8 {[%emt 0:00:19]} 28. g3 {[%emt 0:00:34]} Qd1+ {[%emt 0:02:27]} 29. Kg2 {[%emt 0:00:17]} Bxf2 {[%emt 0:00:17]} 30. Qxf2 {[%emt 0:00:42][%mdl 4096] Endgame KQR-KQR} b4 {[%emt 0:01:16]} 31. Rxb4 {[%emt 0:02:55]} (31. Qf1 Qxf1+ 32. Kxf1 bxc3 33. Rb1) 31... Rxc3 {[%emt 0:00:55] aiming for ...Rc1.} 32. Rb2 {[%emt 0:00:30]} Rc1 {[%csl Gc1][%cal Rd1h1]} 33. Rb4 {[%emt 0:14:49]} Rc3 $2 {[%emt 0:01:00]} (33... Qh1# {mates}) 34. Rb2 $1 $15 {[%emt 0:00:00]} ({Not} 34. Rb8+ $2 Kg7 35. Rb7 Rc2 $19) 34... Rc1 $40 {[%emt 0:00:33][%csl Gc1][%cal Rd1h1][%mdl 128] Black has some attack.} (34... h5 $5 {[%cal Rc3c1]} 35. Qe2 Qxe2+ 36. Rxe2 a5 $15) 35. Kh3 $2 {[%emt 0:00:00][%mdl 8192] [#]} (35. Rb4 $11 Qh1#) 35... Qh1+ $1 {[%emt 0:03:45]} 36. Kg4 {[%emt 0:00:00]} Rf1 {[%emt 0:01:37]} 37. Qg2 {[%emt 0:00:00]} h5+ {[%emt 0:00:28] Black mates.} 38. Kg5 {[%emt 0:00:00]} Qxg2 {[%emt 0:00:11]} 39. Rxg2 {[%emt 0:00:00]} Kg7 {[%emt 0:00:03] Weighted Error Value: White=0.81/Black=0.17 (very precise)} 0-1

[Event "1st Serbian League 2022"]
[Site "Vrnjacka Banja"]
[Date "2022.09.26"]
[Round "7.9"]
[White "Gagunashvili, Merab"]
[Black "Pezelj, Novak"]
[Result "1-0"]
[ECO "B07"]
[WhiteElo "2552"]
[BlackElo "2496"]
[Annotator "TA"]
[PlyCount "93"]
[EventDate "2022.09.20"]
[EventType "team-tourn"]
[EventCountry "SRB"]
[SourceTitle "playchess.com"]
[Source "ChessBase"]
[SourceQuality "1"]
[TimeControl "40/5400+30:1800+30"]

{[%evp 14,93,82,63,111,125,110,94,129,47,93,98,79,72,81,88,80,84,70,65,88,29,28,35,45,0,8,8,8,8,16,16,9,0,36,45,53,0,199,191,199,151,141,148,143,175,176,170,138,19,183,37,193,194,206,197,200,134,568,212,585,571,1759,560,558,556,546,537,537,521,529,537,493,466,650,495,1044,1044,620,573,1491,964]} 1. d4 {[%emt 0:00:07]} g6 {[%emt 0:00:08]} 2. e4 {[%emt 0:00:17]} Bg7 {[%emt 0:00:12]} 3. Nc3 {[%emt 0:00:24]} d6 {[%emt 0:01:13]} 4. Be3 {[%emt 0:02:46]} Nf6 {[%emt 0:02:41]} 5. f3 {[%emt 0:03:13]} c6 {[%emt 0:01:24]} 6. Qd2 {[%emt 0:01:09]} Nbd7 {[%emt 0:11:10]} 7. g4 {[%emt 0:04:04]} Qa5 {[%emt 0:08:59]} 8. Nge2 {[%emt 0:07:26]} Nb6 {[%emt 0:09:52] B07: Pirc Defence: Miscellaneous Systems.} (8... b5 $14) 9. Nc1 $16 {[%emt 0:12:05] Threatens to win with Nb3.} Nbd7 {[%emt 0:00:10]} 10. h4 {[%emt 0:06:07] [#]} h6 $146 {[%emt 0:15:12] White is better.} ({Predecessor:} 10... h5 11. g5 Ng8 12. Bg2 Qc7 13. O-O Nb6 14. b3 Bd7 15. Nd3 e6 16. a4 Ne7 {1-0 (25) Maes,W (2245)-Hulet,G (1914) Charleroi 2011}) 11. Rg1 {[%emt 0:04:38]} (11. Nb3 $16 Qc7 12. a4) 11... Qc7 {[%emt 0:05:07]} (11... b5 $14 {might be stronger.}) 12. a4 {[%emt 0:05:48]} b6 {[%emt 0:03:04]} 13. Be2 {[%emt 0:04:35] White is more active.} a6 {[%emt 0:04:19]} 14. Nd3 {[%emt 0:07:14]} Bb7 {[%emt 0:03:26]} 15. f4 {[%emt 0:06:22]} c5 {[%emt 0:08:30][%cal Of6g4]} 16. d5 {[%emt 0:00:54]} e6 {[%emt 0:01:00][%cal Re6d5]} 17. Nf2 {[%emt 0:10:22]} (17. g5 $16 hxg5 18. fxg5 (18. hxg5 Nxe4 19. Nxe4 exd5 $11) 18... Nxe4 19. Nxe4) 17... exd5 $11 {[%emt 0:02:47]} 18. exd5 {[%emt 0:00:04]} Ng8 {[%emt 0:02:24]} 19. h5 {[%emt 0:03:53]} Ne7 {[%emt 0:00:27]} 20. hxg6 {[%emt 0:01:03]} fxg6 {[%emt 0:00:06]} 21. Nfe4 {[%emt 0:00:50]} Nf6 {[%emt 0:01:19]} 22. Nxf6+ {[%emt 0:00:57]} Bxf6 {[%emt 0:00:01]} 23. Bc4 {[%emt 0:05:26]} h5 {[%emt 0:02:57]} 24. O-O-O {[%emt 0:02:57]} b5 {[%emt 0:02:28]} 25. Ba2 {[%emt 0:01:52]} (25. axb5 axb5 26. Bxb5+ Kf7 27. gxh5 Qa5 $17) (25. Ne4 $14 Bxb2+ 26. Kxb2 bxc4 27. gxh5 gxh5 28. Rg7) 25... hxg4 $2 {[%emt 0:04:01]} (25... Bxc3 $11 {and Black has nothing to worry.} 26. Qxc3 O-O-O) 26. Ne4 $1 $18 {[%emt 0:01:03]} Bg7 {[%emt 0:00:36] [#]} 27. Nxc5 {[%emt 0:03:05][%mdl 512]} Bc8 $16 {[%emt 0:03:04]} 28. Ne6 {[%emt 0:01:01]} Bxe6 {[%emt 0:00:06]} 29. dxe6 {[%emt 0:00:02]} Nf5 {[%emt 0:01:13]} 30. a5 {[%emt 0:03:23]} (30. Rxg4 bxa4 31. Rxg6 Rb8 $11) 30... g3 {[%emt 0:02:55]} 31. Rh1 {[%emt 0:00:48] Inhibits Rh2.} (31. Bb6 $16 Qe7 32. Kb1) 31... Rc8 {[%emt 0:00:11] [#]} (31... Rxh1 $1 $11 32. Rxh1 Qe7) 32. Bb6 {[%emt 0:00:39]} (32. Rxh8+ $1 $18 Bxh8 33. Bb6) 32... Qe7 $2 {[%emt 0:00:24]} (32... Rxh1 $1 $14 33. Rxh1 (33. Bxc7 Rh2 $11) 33... Qe7) 33. Rxh8+ $18 {[%emt 0:00:05]} Bxh8 {[%emt 0:00:02] [#]} 34. Kb1 $1 {[%emt 0:00:15]} (34. c3 b4 35. c4 Kf8 $14) 34... Bf6 {[%emt 0:01:32]} 35. Bd5 {[%emt 0:00:50]} Qg7 $2 {[%emt 0:00:45][%mdl 8192]} (35... Kf8 $16 {is more resistant.} 36. Qd3 Kg7) 36. c3 $2 {[%emt 0:00:12]} (36. Be4 {Strongly threatening Bxf5.} Kf8 37. Qd5) 36... Ke7 $2 {[%emt 0:04:07]} (36... Qe7 {is a better chance.} 37. Qe2 Kf8) 37. Be4 {[%emt 0:00:35] This bishop pair is nice. White is clearly winning.} Bxc3 {[%emt 0:00:07]} 38. bxc3 {[%emt 0:00:41]} (38. Qd5 $142 {Intending Qb7+ and mate.} Qf8 39. bxc3) 38... Qxc3 {[%emt 0:00:42]} 39. Qxc3 {[%emt 0:00:33]} ({Weaker is} 39. Qd5 Qb4+ 40. Ka1 Qa3+ 41. Kb1 Qb4+ 42. Ka2 Qa4+ 43. Kb2 Qb4+ 44. Ka2 Qa4+ 45. Kb2 Qb4+ 46. Ka2 $11) 39... Rxc3 {[%emt 0:00:06]} 40. Bb7 {[%emt 0:00:57]} Ne3 {[%emt 0:01:12]} 41. Rc1 {[%emt 0:11:02]} g2 {[%emt 0:00:31] ...Rxc1+ is the strong threat.} 42. Bxe3 {[%emt 0:01:03]} Rxe3 {[%emt 0:00:02]} 43. Bxg2 {[%emt 0:00:48] And now Bd5 would win.} Kxe6 {[%emt 0:00:12]} 44. Kb2 {[%emt 0:01:02] Inhibits Rb3+.} Kf5 {[%emt 0:01:50]} (44... Rd3 $142 45. Bb7 Rd2+ 46. Kb3 Rd3+ 47. Rc3 Rd4 48. Bxa6 Ra4 49. Bc8+ Ke7) 45. Bb7 {[%emt 0:00:55]} Kxf4 {[%emt 0:00:46]} 46. Bxa6 {[%emt 0:00:13]} Re4 {[%emt 0:00:50]} 47. Ra1 {[%emt 0:01:25] Weighted Error Value: White=0.51/Black=0.70} 1-0

[Event "1st Serbian League 2022"]
[Site "Vrnjacka Banja"]
[Date "2022.09.26"]
[Round "7.10"]
[White "Ratkovic, Milovan"]
[Black "Pap, Misa"]
[Result "0-1"]
[ECO "E11"]
[WhiteElo "2411"]
[BlackElo "2381"]
[Annotator "TA"]
[PlyCount "98"]
[EventDate "2022.09.20"]
[EventType "team-tourn"]
[EventCountry "SRB"]
[SourceTitle "playchess.com"]
[Source "ChessBase"]
[SourceQuality "1"]
[TimeControl "40/5400+30:1800+30"]

{[%evp 12,98,30,30,33,34,25,42,40,35,34,30,39,19,38,36,39,32,36,10,78,68,87,78,98,84,79,68,73,77,77,69,439,72,66,64,70,30,34,30,64,27,107,0,0,0,0,0,0,-17,-4,-100,-90,-188,-183,-195,-49,-234,-221,-233,-231,-273,-264,-487,-488,-458,-404,-496,-485,-542,-388,-558,-542,-392,-381,-1635,-1596,-1722,-2202,-887,-797,-2569,-2243,-29976,-29975,-29984,-29976,-29974,-5257]} 1. d4 {[%emt 0:00:06]} Nf6 {[%emt 0:00:11]} 2. c4 {[%emt 0:00:31]} e6 {[%emt 0:00:05]} 3. Nf3 {[%emt 0:00:37]} Bb4+ {[%emt 0:00:07]} 4. Bd2 {[%emt 0:00:16]} c5 {[%emt 0:00:11]} 5. Bxb4 {[%emt 0:00:41]} cxb4 {[%emt 0:00:07]} 6. a3 {[%emt 0:00:31]} bxa3 {[%emt 0:00:08]} 7. Rxa3 {[%emt 0:00:41] 7.Nxa3 is vanishing.} Nc6 {[%emt 0:05:45] E11: Bogo-Indian.} 8. Nc3 {[%emt 0:03:12]} O-O {[%emt 0:00:25]} 9. e4 {[%emt 0:04:02]} d6 {[%emt 0:00:08] White is slightly better.} 10. Be2 {[%emt 0:02:47]} e5 {[%emt 0:15:58]} 11. d5 {[%emt 0:03:11]} Nb4 {[%emt 0:02:38]} 12. O-O {[%emt 0:02:46][%cal Oc4c5] [#]} Qc7 $146 {[%emt 0:07:50]} ({Predecessor:} 12... Bg4 13. Ne1 Bxe2 14. Qxe2 Nd7 15. Nd3 Nxd3 16. Qxd3 Nc5 17. Qd2 a5 18. Rfa1 Rc8 {1-0 (47) Lazavik,D (2424)-Moiseenko,A (2620) Chess.com INT 2020}) 13. Ne1 {[%emt 0:09:22]} a5 {[%emt 0:02:53]} 14. Nd3 {[%emt 0:12:55]} Bd7 {[%emt 0:02:02]} 15. Kh1 {[%emt 0:07:14]} Qb6 {[%emt 0:07:20] [#]} (15... Rfc8 $11) 16. Qb3 $1 $16 {[%emt 0:16:44]} Rfe8 {[%emt 0:16:20]} 17. Rfa1 {[%emt 0:05:18]} Ra6 {[%emt 0:00:02]} 18. f3 {[%emt 0:02:07][%cal Oc4c5]} (18. c5 dxc5 19. f3 (19. Nxb4 cxb4 20. Bxa6 Ng4 $17) 19... Raa8 $15) 18... h5 {[%emt 0:19:08]} 19. c5 {[%emt 0:07:19]} dxc5 {[%emt 0:00:03][%cal Oa5a4]} 20. Nxb4 {[%emt 0:00:56][%mdl 64] Pin} a4 {[%emt 0:00:53]} 21. Nxa4 {[%emt 0:02:48]} Bxa4 {[%emt 0:00:53][%mdl 8192]} (21... Rxa4 $14 22. Rxa4 Bxa4 23. Rxa4 cxb4) 22. Rxa4 $2 {[%emt 0:00:32]} (22. Qe3 $18 Qxb4 23. Bxa6) 22... Rxa4 {[%emt 0:00:16]} 23. Rxa4 {[%emt 0:03:35] aiming for Qe3.} cxb4 {[%emt 0:05:36]} 24. Rxb4 {[%emt 0:02:13]} Qf2 {[%emt 0:00:14]} 25. Qd1 {[%emt 0:12:36] Prevents Qe1+.} Ra8 {[%emt 0:02:37][%cal Of2e2] ...Qxe2! is the strong threat.} 26. Bf1 {[%emt 0:00:00]} (26. h3 $5 {[%cal Rb4b7]}) 26... h4 {[%emt 0:02:17] [#]} (26... Rc8 $1 $11) 27. d6 {[%emt 0:00:00]} ({Stronger than} 27. Rxb7 Rc8 28. Rb3 Rc2 $17) (27. Rb3 $1 $16) 27... Rc8 $11 {[%emt 0:00:47]} 28. Rc4 {[%emt 0:00:16]} (28. Rxb7 $2 Rc2 29. f4 (29. d7 {gets mated.} h3 30. d8=R+ Kh7) 29... h3 $19) 28... Rd8 {[%emt 0:00:29]} 29. Rc1 {[%emt 0:00:28]} Qxb2 {[%emt 0:04:18]} 30. Qe1 {[%emt 0:00:45]} h3 {[%emt 0:00:25] Threatening ...hxg2+.} 31. gxh3 {[%emt 0:00:34]} (31. g3 $1 $11) 31... Qa3 $17 {[%emt 0:00:06] Black is more active.} 32. Rc3 {[%emt 0:00:55]} (32. Qc3 $17 Qxd6 33. Qc7) 32... Qxd6 $19 {[%emt 0:00:31]} 33. Rd3 {[%emt 0:00:10]} Qc7 {[%emt 0:00:17]} ({Black should play} 33... Qe7 $19 {White must now prevent ...Rxd3.} 34. Rxd8+ Qxd8) 34. Rxd8+ $2 {[%emt 0:00:47]} (34. Qc3 $1 $15 Rc8 35. Qxc7 Rxc7 36. Rb3) 34... Qxd8 $15 {[%emt 0:00:07][%mdl 4096] Endgame KQB-KQN} 35. Bc4 {[%emt 0:00:13]} Qd4 {[%emt 0:00:46]} 36. Qe2 {[%emt 0:00:49]} Nh5 {[%emt 0:00:27]} 37. h4 $2 {[%emt 0:00:31]} (37. Bb5 {was called for.}) 37... Nf4 $19 {[%emt 0:01:42]} 38. Qf1 {[%emt 0:00:01]} g6 {[%emt 0:00:46]} 39. Bb5 {[%emt 0:00:01]} Kg7 {[%emt 0:00:33]} 40. Bc4 {[%emt 0:00:08]} Qc3 {[%emt 0:02:07]} 41. Kg1 {[%emt 0:03:45]} (41. h3 {keeps fighting.}) 41... Qe3+ {[%emt 0:01:00]} 42. Kh1 {[%emt 0:00:05]} f6 {[%emt 0:00:26] Threatens to win with ...Kh6.} 43. Bb5 $2 {[%emt 0:01:48]} (43. h5 Nxh5 44. Qe2) 43... Kh6 {[%emt 0:01:16]} 44. Bc4 {[%emt 0:04:50]} Kh5 {[%emt 0:00:25]} 45. Bb5 {[%emt 0:00:57]} Kxh4 {[%emt 0:01:04] And now ...g5 would win.} 46. Bc4 {[%emt 0:00:53]} g5 {[%emt 0:01:15] ( -> ...g4)} 47. Bd5 {[%emt 0:01:16]} b5 {[%emt 0:00:24][%cal Bb7b5,Bb5b4][%mdl 32] Black mates.} 48. Bc6 {[%emt 0:00:44]} b4 {[%emt 0:00:15]} 49. Bd5 {[%emt 0:00:17]} Kh5 {[%emt 0:01:35] Quite a comeback for Black.  Weighted Error Value: White=0.87/Black=0.28 (precise)} (49... b3 $142 50. Bxb3 Qxb3 51. Qf2+ Kh5 52. Qf1 g4 53. fxg4+ Kxg4 54. Qg1+ Kh5 55. Qf1 Qe3 56. h4 Qxe4+ 57. Kh2 Qe2+ 58. Qxe2+ Nxe2 59. Kh1 Kxh4 60. Kg2 Ng3 61. Kf2 e4 62. Kg2 f5 63. Kf2 f4 64. Ke1 e3 65. Kd1 f3 66. Kc1 f2 67. Kb2 e2 68. Kc3 e1=Q+ 69. Kd4 f1=Q 70. Kc5 Qe7+ 71. Kd4 Qc7 72. Ke3 Qcf4#) 0-1

[Event "1st Serbian League 2022"]
[Site "Vrnjacka Banja"]
[Date "2022.09.26"]
[Round "7.11"]
[White "Savic, Miodrag R"]
[Black "Ratkovic, Miloje"]
[Result "1/2-1/2"]
[ECO "B11"]
[WhiteElo "2406"]
[BlackElo "2498"]
[Annotator "TA"]
[PlyCount "46"]
[EventDate "2022.09.20"]
[EventType "team-tourn"]
[EventCountry "SRB"]
[SourceTitle "playchess.com"]
[Source "ChessBase"]
[SourceQuality "1"]
[TimeControl "40/5400+30:1800+30"]

{[%evp 10,46,28,27,28,5,12,8,36,27,29,20,30,16,18,16,30,10,21,20,21,18,19,16,19,-1,0,0,0,0,0,0,0,5,6,-12,0,0,0]} 1. e4 {[%emt 0:00:14]} c6 {[%emt 0:00:43]} 2. Nf3 {[%emt 0:01:03]} d5 {[%emt 0:00:21]} 3. Nc3 {[%emt 0:00:56]} dxe4 {[%emt 0:03:03]} 4. Nxe4 {[%emt 0:00:36]} Nf6 {[%emt 0:00:20]} 5. Qe2 {[%emt 0:04:15]} Nxe4 {[%emt 0:05:48]} 6. Qxe4 {[%emt 0:00:44]} Qd5 {[%emt 0:03:41] B11: Caro-Kann: Two Knights Variation.} 7. Qh4 {[%emt 0:08:28]} Qe6+ {[%emt 0:01:19]} 8. Be2 {[%emt 0:03:16]} Qg4 {[%emt 0:00:16]} 9. Qxg4 {[%emt 0:08:08]} Bxg4 {[%emt 0:00:10]} 10. h3 {[%emt 0:01:16]} Bh5 {[%emt 0:04:06]} 11. O-O {[%emt 0:03:58]} e6 {[%emt 0:06:02]} 12. d4 {[%emt 0:01:25]} Be7 {[%emt 0:03:34]} 13. Bf4 {[%emt 0:04:04]} O-O {[%emt 0:00:51] The position is equal.} 14. c3 {[%emt 0:03:58] [#]} Nd7 $146 {[%emt 0:04:25]} ({Predecessor:} 14... c5 15. dxc5 Bxc5 16. Rfe1 Nc6 17. Nd2 Bxe2 18. Rxe2 Rfd8 19. Nb3 Bb6 20. Ree1 Rd7 21. Rad1 Rad8 22. Rxd7 Rxd7 23. Kf1 Kf8 {½-½ (23) Wartenberg,A (1790)-Peglau,D (2008) Willingen 2022}) 15. a4 {[%emt 0:06:58]} a5 {[%emt 0:00:41]} 16. Rfe1 {[%emt 0:03:00][%cal Bf1e1,Be1e2,Be2e5][%mdl 32]} Rfe8 {[%emt 0:01:32]} 17. Ne5 {[%emt 0:07:49]} Nxe5 {[%emt 0:02:58]} 18. Bxe5 {[%emt 0:00:48]} ({Don't play} 18. Bxh5 Nd3 19. g3 (19. Re4 f5 $17) 19... Nxe1 20. Rxe1 Red8 $17) 18... Bxe2 {[%emt 0:00:20]} 19. Rxe2 {[%emt 0:00:16]} Rad8 {[%emt 0:01:05]} 20. Bc7 {[%emt 0:01:30][%csl LRa5,LRd8]} Rd5 {[%emt 0:02:13]} 21. Re5 {[%emt 0:03:33]} Bd8 {[%emt 0:01:29]} 22. Bxd8 {[%emt 0:03:16]} Rexd8 {[%emt 0:01:40]} 23. Rae1 {[%emt 0:00:44]} Kf8 {[%emt 0:01:44] Not much happened in this game.  Weighted Error Value: White=0.08 (flawless) /Black=0.04 (flawless)} 1/2-1/2

[Event "1st Serbian League 2022"]
[Site "Vrnjacka Banja"]
[Date "2022.09.26"]
[Round "7.12"]
[White "Dimic, Pavle"]
[Black "Radovanovic, Mihajlo"]
[Result "0-1"]
[ECO "A85"]
[WhiteElo "2352"]
[BlackElo "2438"]
[Annotator "RC"]
[PlyCount "66"]
[EventDate "2022.09.20"]
[EventType "team-tourn"]
[EventCountry "SRB"]
[SourceTitle "playchess.com"]
[Source "ChessBase"]
[SourceQuality "1"]
[TimeControl "40/5400+30:1800+30"]

1. d4 {[%emt 0:00:04]} e6 {[%emt 0:00:17]} 2. c4 {[%emt 0:00:26]} f5 {[%emt 0:01:10]} 3. Nc3 {[%emt 0:04:56]} Nf6 {[%emt 0:00:49]} 4. e3 {[%emt 0:02:50]} Bb4 {[%emt 0:09:01]} 5. Bd2 {[%emt 0:07:02]} O-O {[%emt 0:00:29]} 6. Bd3 {[%emt 0:01:53]} c6 {[%emt 0:05:15]} 7. Nge2 {[%emt 0:02:38]} d6 {[%emt 0:00:55]} 8. Qc2 {[%emt 0:01:47]} Ng4 {[%emt 0:18:39]} 9. f3 {[%emt 0:07:44]} Nh6 {[%emt 0:00:55]} 10. O-O-O {[%emt 0:14:03]} Nd7 {[%emt 0:16:19]} 11. g4 {[%emt 0:18:25]} Kh8 {[%emt 0:03:31]} 12. h3 {[%emt 0:00:21]} a6 {[%emt 0:04:03]} 13. e4 {[%emt 0:34:51]} b5 {[%emt 0:03:01]} 14. Nf4 {[%emt 0:00:00]} Nb6 {[%emt 0:04:37]} 15. cxb5 {[%emt 0:00:00]} axb5 {[%emt 0:00:53]} 16. a3 {[%emt 0:00:00]} fxe4 {[%emt 0:06:41]} 17. fxe4 {[%emt 0:00:00]} e5 {[%emt 0:02:03]} 18. Nfe2 {[%emt 0:00:00]} Bxc3 {[%emt 0:03:12]} 19. Qxc3 {[%emt 0:00:00]} Nf7 {[%emt 0:00:05]} 20. Kb1 {[%emt 0:00:00]} Bd7 {[%emt 0:01:32]} 21. Rhf1 {[%emt 0:00:00]} Qe7 {[%emt 0:03:23]} 22. Rf2 {[%emt 0:00:00]} c5 {[%emt 0:00:19]} 23. dxc5 {[%emt 0:00:00]} dxc5 {[%emt 0:01:13]} 24. Bc2 {[%emt 0:00:18]} Be6 {[%emt 0:01:15]} 25. Bb3 {[%emt 0:00:26]} b4 {[%emt 0:00:39]} 26. axb4 {[%emt 0:01:16]} cxb4 {[%emt 0:02:54]} 27. Qxb4 {[%emt 0:03:19]} Qxb4 {[%emt 0:00:14]} 28. Bxb4 {[%emt 0:00:09]} Bxb3 {[%emt 0:00:04]} 29. Bxf8 {[%emt 0:01:24]} Bxd1 {[%emt 0:00:08]} 30. Rxf7 {[%emt 0:00:11]} Bxe2 {[%emt 0:02:11]} 31. Bxg7+ {[%emt 0:01:18]} Kg8 {[%emt 0:00:05]} 32. Rc7 {[%emt 0:00:33]} Bd3+ {[%emt 0:00:10]} 33. Kc1 {[%emt 0:00:06]} Nc4 {[%emt 0:00:05]} 0-1